[Event "*** Titled Tuesday Blitz"]
[Site "Chess.com"]
[Date "2020.04.21"]
[Round "4"]
[White "lupta_robin"]
[Black "Hikaru"]
[Result "0-1"]
[WhiteElo "2536"]
[BlackElo "3226"]
[TimeControl "180+1"]
[EndTime "10:38:37 PDT"]
[Termination "Hikaru won by resignation"]

1. e4 {[%clk 0:02:59.7]} 1... c5 {[%clk 0:02:57.9]} 2. Nf3 {[%clk 0:02:59.3]}
2... d6 {[%clk 0:02:58]} 3. Bb5+ {[%clk 0:02:58.6]} 3... Nd7 {[%clk 0:02:57.6]}
4. d4 {[%clk 0:02:56.3]} 4... cxd4 {[%clk 0:02:56.2]} 5. Qxd4 {[%clk 0:02:56.5]}
5... a6 {[%clk 0:02:56.4]} 6. Bxd7+ {[%clk 0:02:56.6]} 6... Bxd7 {[%clk
0:02:57.3]} 7. c4 {[%clk 0:02:55.8]} 7... h6 {[%clk 0:02:56.8]} 8. Nc3 {[%clk
0:02:55.5]} 8... e5 {[%clk 0:02:56.7]} 9. Qd3 {[%clk 0:02:54.8]} 9... Nf6 {[%clk
0:02:57.3]} 10. O-O {[%clk 0:02:51.6]} 10... Qb8 {[%clk 0:02:52.5]} 11. a4
{[%clk 0:02:35.2]} 11... Be7 {[%clk 0:02:51.6]} 12. Rd1 {[%clk 0:02:33.4]} 12...
O-O {[%clk 0:02:51.3]} 13. Nd2 {[%clk 0:02:29.4]} 13... Rc8 {[%clk 0:02:43.1]}
14. Nf1 {[%clk 0:02:28.6]} 14... b5 {[%clk 0:02:43.2]} 15. axb5 {[%clk
0:02:27.9]} 15... axb5 {[%clk 0:02:43.6]} 16. Rxa8 {[%clk 0:02:28.4]} 16... Qxa8
{[%clk 0:02:43.4]} 17. cxb5 {[%clk 0:02:26.4]} 17... Qb7 {[%clk 0:02:42.8]} 18.
Ne3 {[%clk 0:02:24.4]} 18... Be6 {[%clk 0:02:32.9]} 19. Bd2 {[%clk 0:02:20.4]}
19... Bf8 {[%clk 0:02:30.7]} 20. Ra1 {[%clk 0:02:08.7]} 20... Nd7 {[%clk
0:02:30.6]} 21. Ned5 {[%clk 0:01:54.2]} 21... Nc5 {[%clk 0:02:23.3]} 22. Qe3
{[%clk 0:01:27.4]} 22... f5 {[%clk 0:02:22.2]} 23. f3 {[%clk 0:01:21.2]} 23...
Bxd5 {[%clk 0:02:16.6]} 24. Nxd5 {[%clk 0:01:16.2]} 24... Qxb5 {[%clk 0:02:14]}
25. b4 {[%clk 0:01:11.5]} 25... Ne6 {[%clk 0:02:13.1]} 26. Rc1 {[%clk 0:00:59]}
26... Rxc1+ {[%clk 0:02:04.5]} 27. Bxc1 {[%clk 0:00:58.8]} 27... Qc4 {[%clk
0:01:53.4]} 28. Qc3 {[%clk 0:00:51.3]} 28... Qe2 {[%clk 0:01:50.6]} 29. Qd2
{[%clk 0:00:47.8]} 29... Qb5 {[%clk 0:01:49.7]} 30. Bb2 {[%clk 0:00:45.5]} 30...
fxe4 {[%clk 0:01:47.4]} 31. fxe4 {[%clk 0:00:44.3]} 31... Qc4 {[%clk 0:01:47.7]}
32. h3 {[%clk 0:00:26.4]} 32... Ng5 {[%clk 0:01:43.8]} 33. Nb6 {[%clk
0:00:16.5]} 33... Qc7 {[%clk 0:01:40.8]} 34. Qd5+ {[%clk 0:00:14.2]} 34... Kh7
{[%clk 0:01:40.5]} 35. Nc4 {[%clk 0:00:14.7]} 35... Qa7+ {[%clk 0:01:40.6]} 36.
Kh2 {[%clk 0:00:14.3]} 36... Qf2 {[%clk 0:01:40.4]} 37. Qd2 {[%clk 0:00:13.8]}
37... Nf3+ {[%clk 0:01:40.3]} 0-1

[Event "*** Titled Tuesday Blitz"]
[Site "Chess.com"]
[Date "2020.04.21"]
[Round "4"]
[White "FLamps8"]
[Black "AcsinteMatei"]
[Result "1-0"]
[WhiteElo "2525"]
[BlackElo "2254"]
[TimeControl "180+1"]
[EndTime "10:38:39 PDT"]
[Termination "FLamps8 won by resignation"]

1. d4 {[%clk 0:03:00.9]} 1... d5 {[%clk 0:02:57.9]} 2. Bf4 {[%clk 0:03:00.7]}
2... c5 {[%clk 0:02:53]} 3. e3 {[%clk 0:03:01.1]} 3... Nc6 {[%clk 0:02:51.9]} 4.
c3 {[%clk 0:03:01.1]} 4... Qb6 {[%clk 0:02:50.8]} 5. Qb3 {[%clk 0:03:00.7]} 5...
c4 {[%clk 0:02:51.1]} 6. Qc2 {[%clk 0:02:58.6]} 6... Bf5 {[%clk 0:02:50.3]} 7.
Qc1 {[%clk 0:02:55.8]} 7... g6 {[%clk 0:02:44.5]} 8. Nf3 {[%clk 0:02:54.5]} 8...
Bg7 {[%clk 0:02:44.5]} 9. Nbd2 {[%clk 0:02:53.5]} 9... f6 {[%clk 0:02:39.3]} 10.
e4 {[%clk 0:02:49.4]} 10... dxe4 {[%clk 0:02:36.4]} 11. Nxc4 {[%clk 0:02:48.7]}
11... Qd8 {[%clk 0:02:28.9]} 12. Nfd2 {[%clk 0:02:48.4]} 12... Nh6 {[%clk
0:02:16.7]} 13. Ne3 {[%clk 0:02:46.9]} 13... e5 {[%clk 0:02:08.9]} 14. dxe5
{[%clk 0:02:43.3]} 14... Nxe5 {[%clk 0:02:06.7]} 15. Bxe5 {[%clk 0:02:37.9]}
15... fxe5 {[%clk 0:02:06]} 16. Bb5+ {[%clk 0:02:35.5]} 16... Bd7 {[%clk
0:01:42.2]} 17. Bc4 {[%clk 0:02:34.6]} 17... Bf5 {[%clk 0:01:25.3]} 18. Qc2
{[%clk 0:02:31]} 18... Qg5 {[%clk 0:01:23.9]} 19. Nxe4 {[%clk 0:02:22.8]} 19...
Bxe4 {[%clk 0:01:13.4]} 20. Qxe4 {[%clk 0:02:23.7]} 20... O-O-O {[%clk
0:01:11.5]} 21. Bd5 {[%clk 0:02:04.6]} 21... Nf5 {[%clk 0:01:01]} 22. Bxb7+
{[%clk 0:02:01]} 22... Kb8 {[%clk 0:01:01.2]} 23. Ba6 {[%clk 0:01:59.3]} 23...
Rd7 {[%clk 0:00:33.3]} 24. O-O {[%clk 0:01:39.3]} 24... Bh6 {[%clk 0:00:26]} 25.
Qb4+ {[%clk 0:01:32.8]} 25... Ka8 {[%clk 0:00:25.9]} 26. Bb5 {[%clk 0:01:30.7]}
26... Rc7 {[%clk 0:00:23.3]} 27. Nd5 {[%clk 0:01:29.7]} 27... Rhc8 {[%clk
0:00:20.5]} 28. Nxc7+ {[%clk 0:01:18.3]} 28... Rxc7 {[%clk 0:00:20.8]} 29. Bd3
{[%clk 0:01:17.2]} 29... Nh4 {[%clk 0:00:18]} 30. Be4+ {[%clk 0:01:16.2]} 1-0

[Event "*** Titled Tuesday Blitz"]
[Site "Chess.com"]
[Date "2020.04.21"]
[Round "4"]
[White "Hippotaner"]
[Black "KikaLaurincova"]
[Result "1-0"]
[WhiteElo "2244"]
[BlackElo "1976"]
[TimeControl "180+1"]
[EndTime "10:38:48 PDT"]
[Termination "Hippotaner won on time"]

1. e4 {[%clk 0:03:00.9]} 1... c5 {[%clk 0:02:58.3]} 2. Nf3 {[%clk 0:03:00.5]}
2... d6 {[%clk 0:02:56.1]} 3. g3 {[%clk 0:03:00.1]} 3... g6 {[%clk 0:02:54.8]}
4. Bg2 {[%clk 0:03:00.3]} 4... Bg7 {[%clk 0:02:55.5]} 5. O-O {[%clk 0:03:00.6]}
5... Nf6 {[%clk 0:02:56.1]} 6. d3 {[%clk 0:03:01.5]} 6... O-O {[%clk 0:02:56]}
7. a4 {[%clk 0:03:01.4]} 7... Nc6 {[%clk 0:02:56.6]} 8. Nc3 {[%clk 0:03:01]}
8... Rb8 {[%clk 0:02:55.8]} 9. Be3 {[%clk 0:03:00.4]} 9... e6 {[%clk 0:02:44.7]}
10. h3 {[%clk 0:02:57.6]} 10... Qc7 {[%clk 0:02:44.3]} 11. Qd2 {[%clk
0:02:55.9]} 11... b6 {[%clk 0:02:44.2]} 12. Bh6 {[%clk 0:02:54.8]} 12... Bb7
{[%clk 0:02:44.1]} 13. Bxg7 {[%clk 0:02:54.9]} 13... Kxg7 {[%clk 0:02:45]} 14.
d4 {[%clk 0:02:44.3]} 14... Nxd4 {[%clk 0:02:42.3]} 15. Nxd4 {[%clk 0:02:44]}
15... cxd4 {[%clk 0:02:43.2]} 16. Qxd4 {[%clk 0:02:44.7]} 16... Qc5 {[%clk
0:02:42.9]} 17. Qxc5 {[%clk 0:02:43.3]} 17... dxc5 {[%clk 0:02:36.3]} 18. Rfd1
{[%clk 0:02:43.3]} 18... Rfd8 {[%clk 0:02:35.5]} 19. f3 {[%clk 0:02:38.1]} 19...
Rd4 {[%clk 0:02:21.8]} 20. Nb5 {[%clk 0:02:37.7]} 20... Rd7 {[%clk 0:01:48.8]}
21. Rxd7 {[%clk 0:02:32]} 21... Nxd7 {[%clk 0:01:49.7]} 22. Rd1 {[%clk
0:02:32.4]} 22... Ne5 {[%clk 0:01:47.7]} 23. b3 {[%clk 0:02:26.8]} 23... Kf8
{[%clk 0:01:27.3]} 24. f4 {[%clk 0:02:21.3]} 24... Nc6 {[%clk 0:01:25.1]} 25.
Rd7 {[%clk 0:01:58.6]} 25... a6 {[%clk 0:00:07]} 26. Nd6 {[%clk 0:01:54.9]}
26... Nd8 {[%clk 0:00:06.8]} 27. Rxd8+ {[%clk 0:01:36.2]} 27... Rxd8 {[%clk
0:00:05.7]} 28. Nxb7 {[%clk 0:01:36.3]} 28... Rd1+ {[%clk 0:00:04]} 29. Kh2
{[%clk 0:01:24.6]} 29... Ke7 {[%clk 0:00:02.7]} 30. a5 {[%clk 0:01:24]} 30...
bxa5 {[%clk 0:00:01.4]} 31. Nxc5 {[%clk 0:01:23.2]} 1-0

[Event "*** Titled Tuesday Blitz"]
[Site "Chess.com"]
[Date "2020.04.21"]
[Round "4"]
[White "Semen_Khanin"]
[Black "12teen"]
[Result "1/2-1/2"]
[WhiteElo "2624"]
[BlackElo "2758"]
[TimeControl "180+1"]
[EndTime "10:38:49 PDT"]
[Termination "Game drawn by repetition"]

1. e4 {[%clk 0:03:00.9]} 1... a6 {[%clk 0:02:58.9]} 2. d4 {[%clk 0:03:00.6]}
2... b5 {[%clk 0:02:59.4]} 3. Nf3 {[%clk 0:02:59.4]} 3... Bb7 {[%clk 0:02:59.4]}
4. Bd3 {[%clk 0:02:59.1]} 4... e6 {[%clk 0:02:59.9]} 5. O-O {[%clk 0:02:58.6]}
5... Nf6 {[%clk 0:03:00]} 6. Re1 {[%clk 0:02:58.1]} 6... d5 {[%clk 0:03:00.2]}
7. exd5 {[%clk 0:02:53.1]} 7... Qxd5 {[%clk 0:02:58.8]} 8. Nc3 {[%clk
0:02:50.7]} 8... Qh5 {[%clk 0:02:57.4]} 9. Ne4 {[%clk 0:02:49.9]} 9... Nbd7
{[%clk 0:02:53]} 10. Ng3 {[%clk 0:02:48]} 10... Bxf3 {[%clk 0:02:49.6]} 11. Nxh5
{[%clk 0:02:43.9]} 11... Bxd1 {[%clk 0:02:50.1]} 12. Nxf6+ {[%clk 0:02:44.2]}
12... Nxf6 {[%clk 0:02:50.7]} 13. Rxd1 {[%clk 0:02:44.1]} 13... c5 {[%clk
0:02:35.2]} 14. a4 {[%clk 0:02:36.2]} 14... b4 {[%clk 0:02:25.4]} 15. dxc5
{[%clk 0:02:20.8]} 15... Bxc5 {[%clk 0:02:26.3]} 16. a5 {[%clk 0:02:21.2]} 16...
Ke7 {[%clk 0:02:23.5]} 17. Bf1 {[%clk 0:02:14.2]} 17... Ne4 {[%clk 0:02:14.2]}
18. Be3 {[%clk 0:02:09.4]} 18... Bxe3 {[%clk 0:02:14.1]} 19. fxe3 {[%clk
0:02:09.8]} 19... Nd6 {[%clk 0:01:53.1]} 20. Rd4 {[%clk 0:02:08.5]} 20... Rhb8
{[%clk 0:01:38.8]} 21. Rad1 {[%clk 0:02:06.4]} 21... Nf5 {[%clk 0:01:27.3]} 22.
Rd7+ {[%clk 0:02:05.9]} 22... Ke8 {[%clk 0:01:20.5]} 23. Kf2 {[%clk 0:02:05.7]}
23... Rc8 {[%clk 0:01:13.7]} 24. R1d2 {[%clk 0:01:36.5]} 24... Rxc2 {[%clk
0:01:00.1]} 25. Rxc2 {[%clk 0:01:36.5]} 25... Kxd7 {[%clk 0:01:00.2]} 26. Rc4
{[%clk 0:01:37.1]} 26... Rb8 {[%clk 0:00:56.9]} 27. Rc5 {[%clk 0:01:25.2]} 27...
Kd6 {[%clk 0:00:51.1]} 28. Rc1 {[%clk 0:01:19.5]} 28... Ne7 {[%clk 0:00:50.4]}
29. Rd1+ {[%clk 0:01:01.2]} 29... Kc6 {[%clk 0:00:49.1]} 30. Rc1+ {[%clk
0:00:45]} 30... Kd6 {[%clk 0:00:49.3]} 31. Rd1+ {[%clk 0:00:39.6]} 31... Kc6
{[%clk 0:00:48.9]} 32. Rc1+ {[%clk 0:00:39.5]} 32... Kd6 {[%clk 0:00:49.3]}
1/2-1/2

[Event "*** Titled Tuesday Blitz"]
[Site "Chess.com"]
[Date "2020.04.21"]
[Round "4"]
[White "RoelandPruijssers"]
[Black "jaskol95"]
[Result "0-1"]
[WhiteElo "2601"]
[BlackElo "2390"]
[TimeControl "180+1"]
[EndTime "10:38:53 PDT"]
[Termination "jaskol95 won by resignation"]

1. e4 {[%clk 0:03:00.9]} 1... e6 {[%clk 0:02:59.3]} 2. d3 {[%clk 0:03:01.1]}
2... d5 {[%clk 0:02:58.6]} 3. Nd2 {[%clk 0:03:01.8]} 3... c5 {[%clk 0:02:59.1]}
4. Ngf3 {[%clk 0:03:02.4]} 4... Nc6 {[%clk 0:02:59.6]} 5. Be2 {[%clk 0:03:03]}
5... g6 {[%clk 0:02:58.4]} 6. exd5 {[%clk 0:03:02.9]} 6... exd5 {[%clk 0:02:58]}
7. d4 {[%clk 0:03:03.4]} 7... cxd4 {[%clk 0:02:54.3]} 8. Nb3 {[%clk 0:03:01.4]}
8... Bg7 {[%clk 0:02:53.9]} 9. Nfxd4 {[%clk 0:03:01]} 9... Nf6 {[%clk 0:02:53]}
10. O-O {[%clk 0:03:00]} 10... O-O {[%clk 0:02:53]} 11. Nxc6 {[%clk 0:02:40.7]}
11... bxc6 {[%clk 0:02:51.6]} 12. Be3 {[%clk 0:02:41.1]} 12... Re8 {[%clk
0:02:46.9]} 13. Bd4 {[%clk 0:02:37.4]} 13... Bf5 {[%clk 0:02:22.2]} 14. Bd3
{[%clk 0:02:30.8]} 14... Bxd3 {[%clk 0:02:16.3]} 15. Qxd3 {[%clk 0:02:28.3]}
15... Ne4 {[%clk 0:01:59.5]} 16. c3 {[%clk 0:02:01.6]} 16... Qc7 {[%clk
0:01:40.8]} 17. f3 {[%clk 0:01:53.4]} 17... Nd6 {[%clk 0:01:35.2]} 18. Bxg7
{[%clk 0:01:41.2]} 18... Kxg7 {[%clk 0:01:35.1]} 19. Qd4+ {[%clk 0:01:39.5]}
19... Kg8 {[%clk 0:01:32.8]} 20. Rfe1 {[%clk 0:01:26]} 20... Nc4 {[%clk
0:01:16.5]} 21. Qf2 {[%clk 0:01:19.2]} 21... Qb6 {[%clk 0:01:13.4]} 22. Nc5
{[%clk 0:00:59.8]} 22... Qxb2 {[%clk 0:01:04.4]} 23. Qxb2 {[%clk 0:00:56.6]}
23... Nxb2 {[%clk 0:01:05.3]} 24. Rab1 {[%clk 0:00:57]} 24... Nc4 {[%clk
0:01:00.9]} 25. Rxe8+ {[%clk 0:00:53.2]} 25... Rxe8 {[%clk 0:01:00.8]} 26. Rb7
{[%clk 0:00:53.8]} 26... Re2 {[%clk 0:00:51.2]} 27. Rxa7 {[%clk 0:00:53.4]}
27... Ne3 {[%clk 0:00:51.3]} 28. Re7 {[%clk 0:00:37]} 28... Rxg2+ {[%clk
0:00:47.9]} 29. Kh1 {[%clk 0:00:37.4]} 29... Re2 {[%clk 0:00:48.1]} 30. h4
{[%clk 0:00:37.9]} 30... Re1+ {[%clk 0:00:45.7]} 31. Kh2 {[%clk 0:00:37.2]}
31... Nf1+ {[%clk 0:00:46]} 32. Kg2 {[%clk 0:00:38.1]} 32... Rxe7 {[%clk
0:00:45.9]} 33. Kf2 {[%clk 0:00:39]} 0-1

[Event "*** Titled Tuesday Blitz"]
[Site "Chess.com"]
[Date "2020.04.21"]
[Round "4"]
[White "DucksParadise"]
[Black "Corpescador"]
[Result "0-1"]
[WhiteElo "2069"]
[BlackElo "2392"]
[TimeControl "180+1"]
[EndTime "10:39:00 PDT"]
[Termination "Corpescador won on time"]

1. e4 {[%clk 0:03:00.9]} 1... c5 {[%clk 0:02:59.9]} 2. Nf3 {[%clk 0:03:00.2]}
2... d6 {[%clk 0:03:00.1]} 3. d4 {[%clk 0:02:59.9]} 3... cxd4 {[%clk 0:03:01]}
4. Nxd4 {[%clk 0:03:00.8]} 4... Nf6 {[%clk 0:03:01.6]} 5. Nc3 {[%clk 0:03:00.6]}
5... a6 {[%clk 0:03:02]} 6. Bg5 {[%clk 0:02:59.7]} 6... Nbd7 {[%clk 0:03:01.5]}
7. Qe2 {[%clk 0:02:58.1]} 7... h6 {[%clk 0:03:01]} 8. Bh4 {[%clk 0:02:57.7]}
8... g6 {[%clk 0:03:00.4]} 9. O-O-O {[%clk 0:02:53.7]} 9... e5 {[%clk
0:03:00.1]} 10. Nb3 {[%clk 0:02:52.9]} 10... Qc7 {[%clk 0:03:00]} 11. Kb1 {[%clk
0:02:32.4]} 11... b5 {[%clk 0:02:59.6]} 12. f3 {[%clk 0:02:08.8]} 12... Bb7
{[%clk 0:02:50]} 13. g4 {[%clk 0:01:53.3]} 13... b4 {[%clk 0:02:46.9]} 14. Nd5
{[%clk 0:01:36.2]} 14... Bxd5 {[%clk 0:02:14.4]} 15. exd5 {[%clk 0:01:37.1]}
15... Bg7 {[%clk 0:02:13.6]} 16. Bf2 {[%clk 0:01:09.8]} 16... O-O {[%clk
0:02:05.8]} 17. h4 {[%clk 0:00:54.6]} 17... a5 {[%clk 0:02:03.2]} 18. g5 {[%clk
0:00:51.8]} 18... Nh5 {[%clk 0:01:53.4]} 19. Qe3 {[%clk 0:00:19.2]} 19... Rfc8
{[%clk 0:01:19.5]} 20. Rc1 {[%clk 0:00:14.8]} 20... hxg5 {[%clk 0:01:10.7]} 21.
hxg5 {[%clk 0:00:13.8]} 21... a4 {[%clk 0:01:11.3]} 22. Nd2 {[%clk 0:00:13.1]}
22... b3 {[%clk 0:01:03.7]} 23. Ne4 {[%clk 0:00:12.3]} 23... bxc2+ {[%clk
0:01:01.7]} 24. Ka1 {[%clk 0:00:10.8]} 24... a3 {[%clk 0:00:59.7]} 25. b3 {[%clk
0:00:08.1]} 25... Nc5 {[%clk 0:00:57.2]} 0-1

[Event "*** Titled Tuesday Blitz"]
[Site "Chess.com"]
[Date "2020.04.21"]
[Round "4"]
[White "joppie2"]
[Black "KhamzinOlzhas"]
[Result "1-0"]
[WhiteElo "2926"]
[BlackElo "2548"]
[TimeControl "180+1"]
[EndTime "10:39:01 PDT"]
[Termination "joppie2 won by resignation"]

1. e4 {[%clk 0:03:00.9]} 1... c5 {[%clk 0:02:59.7]} 2. Nf3 {[%clk 0:03:01.2]}
2... d6 {[%clk 0:02:59.5]} 3. c3 {[%clk 0:03:00.3]} 3... Nf6 {[%clk 0:02:58.9]}
4. Bc4 {[%clk 0:03:00.9]} 4... Nc6 {[%clk 0:02:50.9]} 5. d4 {[%clk 0:02:58.4]}
5... cxd4 {[%clk 0:02:46.5]} 6. cxd4 {[%clk 0:02:59.3]} 6... e6 {[%clk
0:02:27.5]} 7. d5 {[%clk 0:02:52.4]} 7... exd5 {[%clk 0:02:20.4]} 8. exd5 {[%clk
0:02:53.3]} 8... Na5 {[%clk 0:02:04.4]} 9. Bd3 {[%clk 0:02:45.1]} 9... b6 {[%clk
0:01:47.4]} 10. O-O {[%clk 0:02:40.9]} 10... Be7 {[%clk 0:01:47.1]} 11. Nc3
{[%clk 0:02:33.8]} 11... O-O {[%clk 0:01:43.2]} 12. b4 {[%clk 0:02:31.3]} 12...
Nb7 {[%clk 0:01:40.7]} 13. Nd4 {[%clk 0:02:31.9]} 13... Qd7 {[%clk 0:01:10.4]}
14. Re1 {[%clk 0:02:27.7]} 14... Re8 {[%clk 0:01:10]} 15. Bb5 {[%clk 0:02:27.5]}
15... Qc7 {[%clk 0:01:09.7]} 16. Bb2 {[%clk 0:01:57.4]} 16... Bd7 {[%clk
0:01:06.6]} 17. Bc6 {[%clk 0:01:57.6]} 17... a6 {[%clk 0:01:00.6]} 18. Rc1
{[%clk 0:01:51.7]} 18... Rad8 {[%clk 0:01:00.1]} 19. Qa4 {[%clk 0:01:50.6]}
19... Ra8 {[%clk 0:00:47.3]} 20. Ne4 {[%clk 0:01:29]} 20... b5 {[%clk
0:00:30.5]} 21. Nxb5 {[%clk 0:01:10.4]} 21... axb5 {[%clk 0:00:28.6]} 22. Qxb5
{[%clk 0:01:11.3]} 22... Bxc6 {[%clk 0:00:18.7]} 23. dxc6 {[%clk 0:01:12.2]}
23... Nd8 {[%clk 0:00:17.4]} 24. Bxf6 {[%clk 0:01:12.8]} 24... Ne6 {[%clk
0:00:09.3]} 25. Bxe7 {[%clk 0:01:10.2]} 25... Rxe7 {[%clk 0:00:10.2]} 26. Nc3
{[%clk 0:01:10.6]} 26... Qa7 {[%clk 0:00:08]} 27. Nd5 {[%clk 0:01:09.7]} 27...
Ree8 {[%clk 0:00:08.9]} 28. c7 {[%clk 0:01:09.7]} 28... Qxa2 {[%clk 0:00:07.8]}
29. Qxe8+ {[%clk 0:01:06]} 29... Rxe8 {[%clk 0:00:05.4]} 30. c8=Q {[%clk
0:01:06.9]} 1-0

[Event "*** Titled Tuesday Blitz"]
[Site "Chess.com"]
[Date "2020.04.21"]
[Round "4"]
[White "blobica"]
[Black "WIDBIFS"]
[Result "0-1"]
[WhiteElo "2528"]
[BlackElo "2772"]
[TimeControl "180+1"]
[EndTime "10:39:02 PDT"]
[Termination "WIDBIFS won on time"]

1. e4 {[%clk 0:03:00.9]} 1... g6 {[%clk 0:02:59.1]} 2. d4 {[%clk 0:02:59.6]}
2... Bg7 {[%clk 0:02:59.9]} 3. Nc3 {[%clk 0:02:59.7]} 3... c6 {[%clk 0:03:00.3]}
4. Be3 {[%clk 0:02:59.5]} 4... d5 {[%clk 0:03:00.7]} 5. Nf3 {[%clk 0:02:58.7]}
5... Bg4 {[%clk 0:02:59.3]} 6. Be2 {[%clk 0:02:57.9]} 6... Nf6 {[%clk
0:02:57.4]} 7. e5 {[%clk 0:02:55.7]} 7... Nfd7 {[%clk 0:02:50.5]} 8. Nb1 {[%clk
0:02:54.8]} 8... e6 {[%clk 0:02:48.2]} 9. c3 {[%clk 0:02:54]} 9... Bxf3 {[%clk
0:02:48.2]} 10. gxf3 {[%clk 0:02:49.8]} 10... c5 {[%clk 0:02:45.5]} 11. h4
{[%clk 0:02:47.2]} 11... h5 {[%clk 0:02:45.4]} 12. Na3 {[%clk 0:02:44]} 12... a6
{[%clk 0:02:45.2]} 13. Qd2 {[%clk 0:02:40.1]} 13... Nc6 {[%clk 0:02:43.8]} 14.
Bg5 {[%clk 0:02:35.1]} 14... Qc7 {[%clk 0:02:42]} 15. Nc2 {[%clk 0:02:30.2]}
15... b5 {[%clk 0:02:37.6]} 16. O-O {[%clk 0:02:24.6]} 16... O-O {[%clk
0:02:28.2]} 17. Bh6 {[%clk 0:02:10.3]} 17... Rfc8 {[%clk 0:02:25.3]} 18. Bxg7
{[%clk 0:01:57.5]} 18... Kxg7 {[%clk 0:02:26.2]} 19. Ne3 {[%clk 0:01:55.8]}
19... Qd8 {[%clk 0:02:22.7]} 20. Ng2 {[%clk 0:01:55]} 20... cxd4 {[%clk
0:02:21.7]} 21. cxd4 {[%clk 0:01:54.3]} 21... Qe7 {[%clk 0:02:12.8]} 22. a3
{[%clk 0:01:31.9]} 22... Rc7 {[%clk 0:02:04.1]} 23. Rac1 {[%clk 0:01:23.9]}
23... Rac8 {[%clk 0:02:04.4]} 24. f4 {[%clk 0:01:19.7]} 24... Nb6 {[%clk
0:02:00]} 25. Kh2 {[%clk 0:00:51.7]} 25... Nc4 {[%clk 0:01:57.9]} 26. Bxc4
{[%clk 0:00:50.8]} 26... dxc4 {[%clk 0:01:58]} 27. d5 {[%clk 0:00:44.4]} 27...
exd5 {[%clk 0:01:58.1]} 28. Qxd5 {[%clk 0:00:43.4]} 28... Rd8 {[%clk 0:01:58.8]}
29. Qe4 {[%clk 0:00:40.6]} 29... Nd4 {[%clk 0:01:53.8]} 30. Rce1 {[%clk
0:00:31.9]} 30... Nf5 {[%clk 0:01:53]} 31. Kh3 {[%clk 0:00:18.7]} 31... Rd3+
{[%clk 0:01:50.6]} 32. Kh2 {[%clk 0:00:14.1]} 32... Nxh4 {[%clk 0:01:48.8]} 33.
Ne3 {[%clk 0:00:14.1]} 33... Rd4 {[%clk 0:01:42.4]} 34. Qh1 {[%clk 0:00:09.5]}
34... Rcd7 {[%clk 0:01:31.1]} 35. Rg1 {[%clk 0:00:06.1]} 35... Rxf4 {[%clk
0:01:28.2]} 36. Nd5 {[%clk 0:00:05.1]} 36... Rxd5 {[%clk 0:01:28.1]} 37. Qxd5
{[%clk 0:00:04.8]} 37... Nf3+ {[%clk 0:01:27.6]} 0-1

[Event "*** Titled Tuesday Blitz"]
[Site "Chess.com"]
[Date "2020.04.21"]
[Round "4"]
[White "Zubrrr"]
[Black "Majesth"]
[Result "1-0"]
[WhiteElo "2684"]
[BlackElo "2501"]
[TimeControl "180+1"]
[EndTime "10:39:02 PDT"]
[Termination "Zubrrr won by resignation"]

1. c4 {[%clk 0:03:00.9]} 1... e5 {[%clk 0:02:59.2]} 2. g3 {[%clk 0:03:01.3]}
2... Nc6 {[%clk 0:02:59]} 3. Nc3 {[%clk 0:03:01.8]} 3... d6 {[%clk 0:02:59.1]}
4. Bg2 {[%clk 0:03:02.1]} 4... Be6 {[%clk 0:02:58.7]} 5. d3 {[%clk 0:03:02]}
5... Qd7 {[%clk 0:02:58.3]} 6. Rb1 {[%clk 0:02:59]} 6... g6 {[%clk 0:02:56.6]}
7. b4 {[%clk 0:02:59.3]} 7... Bg7 {[%clk 0:02:56.2]} 8. b5 {[%clk 0:02:59.6]}
8... Nd8 {[%clk 0:02:55.6]} 9. Bd2 {[%clk 0:02:59.7]} 9... f5 {[%clk 0:02:52.5]}
10. Nf3 {[%clk 0:02:58.9]} 10... Nf6 {[%clk 0:02:50.2]} 11. O-O {[%clk
0:02:57.6]} 11... h6 {[%clk 0:02:49.9]} 12. Ne1 {[%clk 0:02:51.7]} 12... f4
{[%clk 0:02:28.4]} 13. gxf4 {[%clk 0:02:47]} 13... exf4 {[%clk 0:02:25.3]} 14.
Bxf4 {[%clk 0:02:47.1]} 14... Nh5 {[%clk 0:02:21.9]} 15. Bd2 {[%clk 0:02:45.7]}
15... Bh3 {[%clk 0:02:09.3]} 16. Ne4 {[%clk 0:02:40]} 16... O-O {[%clk
0:01:59.8]} 17. e3 {[%clk 0:02:18.9]} 17... Bxg2 {[%clk 0:01:38.1]} 18. Kxg2
{[%clk 0:02:13.4]} 18... Ne6 {[%clk 0:01:22.3]} 19. f4 {[%clk 0:02:07.1]} 19...
Kh7 {[%clk 0:01:16.1]} 20. Kh1 {[%clk 0:01:39]} 20... d5 {[%clk 0:01:13.8]} 21.
cxd5 {[%clk 0:01:38.5]} 21... Qxd5 {[%clk 0:01:14.7]} 22. Qb3 {[%clk 0:01:34.2]}
22... Qf5 {[%clk 0:01:09.5]} 23. Rg1 {[%clk 0:01:22.7]} 23... Rae8 {[%clk
0:00:55.1]} 24. Qc4 {[%clk 0:01:03]} 24... Qh3 {[%clk 0:00:52.3]} 25. Nf2 {[%clk
0:00:51.2]} 25... Qh4 {[%clk 0:00:38.9]} 26. Rg2 {[%clk 0:00:51.6]} 26... Ng5
{[%clk 0:00:31.6]} 27. fxg5 {[%clk 0:00:49]} 27... Rxf2 {[%clk 0:00:30.3]} 28.
Qxh4 {[%clk 0:00:48.8]} 28... Rf1+ {[%clk 0:00:28.5]} 29. Rg1 {[%clk 0:00:49.2]}
1-0

[Event "*** Titled Tuesday Blitz"]
[Site "Chess.com"]
[Date "2020.04.21"]
[Round "4"]
[White "The_Chess_Coach"]
[Black "maxip32"]
[Result "0-1"]
[WhiteElo "2139"]
[BlackElo "2417"]
[TimeControl "180+1"]
[EndTime "10:39:05 PDT"]
[Termination "maxip32 won by resignation"]

1. d4 {[%clk 0:03:00.9]} 1... Nf6 {[%clk 0:02:59.7]} 2. c4 {[%clk 0:03:01]} 2...
g6 {[%clk 0:02:58.3]} 3. Nc3 {[%clk 0:03:01.3]} 3... Bg7 {[%clk 0:02:58.4]} 4.
e4 {[%clk 0:03:01.8]} 4... d6 {[%clk 0:02:58.9]} 5. Nf3 {[%clk 0:03:02.1]} 5...
O-O {[%clk 0:02:59.4]} 6. Be2 {[%clk 0:03:02.4]} 6... e5 {[%clk 0:02:59.8]} 7.
Be3 {[%clk 0:03:02.8]} 7... Ng4 {[%clk 0:02:56.2]} 8. Bg5 {[%clk 0:03:02.9]}
8... f6 {[%clk 0:02:56.8]} 9. Bh4 {[%clk 0:03:03.2]} 9... Nc6 {[%clk 0:02:47.7]}
10. d5 {[%clk 0:03:02.5]} 10... Ne7 {[%clk 0:02:47.3]} 11. h3 {[%clk 0:03:02.6]}
11... Nh6 {[%clk 0:02:47.3]} 12. g4 {[%clk 0:02:52.9]} 12... Nf7 {[%clk
0:02:41.4]} 13. Nd2 {[%clk 0:02:52.1]} 13... c5 {[%clk 0:02:40.6]} 14. Qc2
{[%clk 0:02:42.5]} 14... a6 {[%clk 0:02:34.4]} 15. a3 {[%clk 0:02:39.8]} 15...
Bd7 {[%clk 0:02:31.6]} 16. b4 {[%clk 0:02:38.4]} 16... b6 {[%clk 0:02:29.3]} 17.
bxc5 {[%clk 0:02:32.1]} 17... dxc5 {[%clk 0:02:24.3]} 18. Rb1 {[%clk 0:02:12.6]}
18... Nd6 {[%clk 0:02:23.5]} 19. Bd3 {[%clk 0:02:11.7]} 19... Rb8 {[%clk
0:02:22.4]} 20. Ke2 {[%clk 0:02:09.8]} 20... b5 {[%clk 0:02:13.2]} 21. g5 {[%clk
0:01:25.1]} 21... f5 {[%clk 0:02:10.9]} 22. f3 {[%clk 0:01:24.7]} 22... h6
{[%clk 0:00:35.4]} 23. Rhg1 {[%clk 0:01:05.6]} 23... Kh7 {[%clk 0:00:33.4]} 24.
gxh6 {[%clk 0:00:46.9]} 24... Bxh6 {[%clk 0:00:33.1]} 25. Bxe7 {[%clk
0:00:41.5]} 25... Qxe7 {[%clk 0:00:32.3]} 0-1